bitfinex/quotes_BTCUSD_20230120
["timestamp","ask_amount","ask_price","bid_price","bid_amount"]
[1674245693602,0.47720169,21850.0,21846.0,0.457744]
[1674245693920,1.27140212,21849.0,21841.0,0.457849]
[1674245694168,0.97090812,21848.0,21841.0,0.457849]
[1674245694415,0.97898212,21847.0,21840.0,0.457869]
[1674245694712,0.18502243,21846.0,21840.0,0.55648077]
[1674245694968,0.18502243,21847.0,21841.0,4.91533129]
[1674245695216,0.18502243,21847.0,21842.0,1.727422]
[1674245695478,0.2,21849.0,21842.0,1.92990377]
[1674245695725,0.0181442,21844.0,21843.0,1.51776624]
[1674245695990,0.00182107,21844.0,21843.0,3.46166565]
[1674245696235,0.00182107,21844.0,21843.0,4.11866565]
[1674245696505,0.00182107,21844.0,21843.0,3.96866565]
[1674245696735,0.00182107,21844.0,21843.0,3.96871816]
[1674245696983,0.00182107,21844.0,21843.0,3.05346218]
[1674245697291,0.00182107,21844.0,21843.0,2.75346218]
[1674245697502,0.744176,21852.0,21843.0,3.010951]
[1674245697744,0.18502243,21853.0,21845.0,1.373265]
[1674245697995,0.15,21854.0,21847.0,0.15]
[1674245698256,0.15,21854.0,21849.0,0.457684]
[1674245698496,0.15,21854.0,21850.0,0.09861177]
[1674245698755,0.15,21854.0,21851.0,0.45764]
[1674245699000,0.15,21854.0,21851.0,0.55625177]
[1674245699249,0.80774169,21853.0,21848.0,0.457701]
[1674245699502,0.50847943,21852.0,21848.0,0.457701]
[1674245699755,0.317292,21851.0,21848.0,0.457701]
[1674245700008,0.326446,21850.0,21848.0,0.457701]
[1674245700254,0.47720169,21853.0,21847.0,0.457725]
[1674245700509,0.66222412,21853.0,21848.0,0.09861177]
[1674245700758,0.15,21854.0,21848.0,0.55631277]
[1674245701005,0.15,21855.0,21848.0,0.55631277]
[1674245701006,0.15,21855.0,21849.0,0.09861177]
[1674245701252,0.15,21855.0,21850.0,1.01391477]
[1674245701771,0.47720169,21854.0,21848.0,0.915408]
[1674245702040,0.15,21855.0,21848.0,0.915408]
[1674245702336,1.01219603,21862.0,21849.0,0.3085]
[1674245702337,0.16792867,21859.0,21849.0,0.3085]
[1674245702539,0.01792867,21859.0,21852.0,1.372872]
[1674245702791,0.01792867,21859.0,21853.0,0.3]
[1674245703033,0.01792867,21859.0,21854.0,1.726513]
[1674245703289,0.01792867,21859.0,21855.0,0.39861177]
[1674245703543,0.01792867,21859.0,21856.0,1.68351577]
[1674245703797,0.01792867,21859.0,21857.0,2.16439577]
[1674245704068,6.7e-07,21859.0,21858.0,1.372494]
[1674245704308,0.01778711,21861.0,21858.0,2.13337877]
[1674245704556,0.01278836,21863.0,21859.0,0.45]
[1674245704812,0.01278836,21863.0,21860.0,1.576106]
[1674245705059,0.01278836,21863.0,21861.0,0.3]
[1674245705324,0.01278836,21863.0,21862.0,1.575968]
[1674245705563,0.01278836,21863.0,21862.0,1.875968]
[1674245705837,0.33693079,21863.0,21860.0,0.457446]
[1674245706123,0.66222412,21862.0,21859.0,0.15]
[1674245706336,0.08200836,21863.0,21855.0,0.45756]
[1674245706337,0.324363,21861.0,21855.0,0.45756]
[1674245706597,0.18502243,21860.0,21854.0,0.457576]
[1674245706837,0.66222412,21859.0,21852.0,0.457617]
[1674245707087,0.60742,21862.0,21852.0,0.457617]
[1674245707088,0.96663412,21858.0,21852.0,0.457617]
[1674245707335,0.74197,21862.0,21852.0,0.457617]
[1674245707336,0.18502243,21857.0,21852.0,0.457617]
[1674245707619,0.18502243,21856.0,21849.0,0.457675]
[1674245707866,1.05889053,21855.0,21848.0,0.457704]
[1674245708108,0.18502243,21854.0,21848.0,0.457704]
[1674245708346,0.18502243,21853.0,21847.0,0.607717]
[1674245708612,0.62720169,21854.0,21847.0,0.607717]
[1674245708613,0.18502243,21852.0,21847.0,0.607717]
[1674245708861,0.18502243,21852.0,21847.0,0.457717]
[1674245709159,0.15,21854.0,21847.0,0.457717]
[1674245709160,0.18502243,21851.0,21847.0,0.457717]
[1674245710149,0.15,21853.0,21847.0,0.55632877]
[1674245710420,0.741288,21856.0,21848.0,0.30249777]
[1674245710421,0.15,21856.0,21848.0,0.30249777]
[1674245710657,0.46834243,21856.0,21850.0,0.457664]
[1674245710905,1.21806269,21856.0,21851.0,0.09861177]
[1674245711164,0.316492,21855.0,21851.0,0.09861177]
[1674245711414,0.310921,21854.0,21851.0,0.09861177]
[1674245711660,0.47720169,21855.0,21850.0,0.457647]
[1674245711661,0.319675,21853.0,21850.0,0.457647]
[1674245711907,0.15,21856.0,21851.0,0.457625]
[1674245712161,0.154,21856.0,21852.0,0.09861177]
[1674245712409,0.154,21856.0,21853.0,0.09861177]
[1674245712410,0.004,21856.0,21853.0,0.09861177]
[1674245712661,0.004,21856.0,21854.0,0.55619377]
[1674245712915,0.004,21856.0,21855.0,0.203817]
[1674245713410,0.004,21856.0,21854.0,0.457582]
[1674245713657,0.13357,21860.0,21854.0,0.915164]
[1674245713902,0.31859243,21860.0,21855.0,0.09861177]
[1674245714148,0.15,21861.0,21856.0,1.01367577]
[1674245714425,0.01278836,21863.0,21857.0,0.09861177]
[1674245714677,0.01278836,21863.0,21856.0,0.915064]
[1674245714678,0.01278836,21863.0,21858.0,1.47106077]
[1674245714973,0.01278836,21863.0,21859.0,0.24861177]
[1674245715183,0.01278836,21863.0,21860.0,1.47096777]
[1674245715686,0.008,21861.0,21860.0,1.47096777]
[1674245715936,0.008,21861.0,21860.0,1.372356]
[1674245716206,0.00512954,21861.0,21860.0,1.672356]
[1674245716688,0.00512954,21861.0,21860.0,1.680856]
[1674245716934,0.01278836,21863.0,21860.0,4.680856]
[1674245717187,0.02078836,21863.0,21861.0,0.30293309]
[1674245717432,0.01278836,21863.0,21862.0,1.372242]
[1674245717681,0.01278836,21863.0,21862.0,1.37113421]
[1674245717932,0.01792867,21865.0,21862.0,1.95544767]
[1674245718183,0.008,21863.0,21862.0,2.62195716]
[1674245718443,0.01792867,21865.0,21862.0,1.53184539]
[1674245718696,0.01792867,21865.0,21863.0,0.15]
[1674245718941,0.01792867,21865.0,21863.0,0.607381]
[1674245719210,0.01792867,21865.0,21863.0,0.15]
[1674245719481,0.01792867,21865.0,21862.0,3.59430621]
[1674245719754,0.01792867,21865.0,21862.0,3.91372021]
[1674245720059,0.00792867,21865.0,21862.0,0.91372021]
[1674245720303,0.00792867,21865.0,21862.0,1.50913421]
[1674245720570,0.00792867,21865.0,21862.0,1.37113421]
[1674245720824,0.00792867,21865.0,21862.0,1.50913421]
[1674245721078,0.00792867,21865.0,21863.0,0.15]
[1674245721350,0.00792867,21865.0,21864.0,1.01335577]
[1674245721592,0.00792867,21865.0,21864.0,1.672116]
[1674245721855,0.00792867,21865.0,21864.0,1.822116]
[1674245722339,0.00792867,21865.0,21864.0,1.522116]
[1674245722659,0.00792867,21865.0,21864.0,1.37178251]
[1674245722852,0.00792867,21865.0,21864.0,2.46628251]
[1674245723899,0.00792867,21865.0,21864.0,2.60428251]
[1674245724147,0.00792867,21865.0,21864.0,2.46628251]
[1674245724420,0.00792867,21865.0,21864.0,2.60428251]
[1674245724643,0.00792867,21865.0,21864.0,2.46628251]
[1674245724892,0.00792867,21865.0,21864.0,2.68953851]
[1674245724893,0.07782867,21865.0,21864.0,2.68953851]
[1674245725134,0.00792867,21865.0,21864.0,2.68953851]
[1674245725400,0.00792867,21865.0,21864.0,1.68953851]
[1674245726445,0.00792867,21865.0,21864.0,1.65015028]
[1674245726654,0.00792867,21865.0,21864.0,2.00153851]
[1674245726897,0.00792867,21865.0,21864.0,4.00153851]
[1674245727145,0.0743,21867.0,21864.0,1.7758794]
[1674245727417,0.0743,21867.0,21865.0,0.00451968]
[1674245727702,0.0743,21867.0,21866.0,1.371993]
[1674245728162,0.0743,21867.0,21866.0,1.821993]
[1674245728657,1.40522867,21872.0,21866.0,1.821993]
[1674245728658,0.01792867,21872.0,21866.0,1.821993]
[1674245728941,0.01792867,21872.0,21867.0,0.54861177]
[1674245729178,0.01792867,21872.0,21868.0,1.47044577]
[1674245729420,0.01792867,21872.0,21869.0,0.3]
[1674245729683,0.01792867,21872.0,21870.0,1.371741]
[1674245730187,0.01792867,21872.0,21870.0,0.66694373]
[1674245731222,0.01792867,21872.0,21870.0,0.80494373]
[1674245731483,0.01792867,21872.0,21871.0,0.457226]
[1674245731731,0.3420711,21872.0,21870.0,0.276]
[1674245732016,0.78862269,21871.0,21870.0,0.271]
[1674245732508,0.78862269,21871.0,21865.0,0.00451968]
[1674245732509,0.15,21870.0,21865.0,0.00451968]
[1674245732837,1.12337212,21869.0,21865.0,0.00451968]
[1674245733026,0.49659743,21868.0,21865.0,0.00451968]
[1674245733279,0.329411,21867.0,21865.0,0.00451968]
[1674245733538,0.32654,21866.0,21865.0,0.00451968]
[1674245734042,0.51156243,21866.0,21865.0,0.00451968]
[1674245734312,0.85139569,21866.0,21865.0,1.968e-05]
[1674245734572,0.85139569,21866.0,21857.0,0.457508]
[1674245734573,0.15,21865.0,21857.0,0.457508]
[1674245734845,1.18786412,21864.0,21857.0,0.457508]
[1674245735118,0.18502243,21863.0,21857.0,0.457508]
[1674245735373,0.18502243,21862.0,21858.0,5.0]
[1674245735632,0.18502243,21862.0,21859.0,0.457473]
[1674245735907,1.5956,21865.0,21858.0,5.457483]
[1674245736142,1.5956,21865.0,21859.0,0.55607277]
[1674245736143,1.63062243,21865.0,21859.0,0.55607277]
[1674245736400,0.013,21863.0,21860.0,0.09861177]
[1674245736677,1.3986,21870.0,21863.0,0.00457422]
[1674245736919,1.5956,21870.0,21865.0,0.457349]
[1674245737177,1.5956,21870.0,21866.0,0.09861177]
[1674245737178,1.4456,21870.0,21866.0,0.09861177]
[1674245737430,1.4456,21870.0,21867.0,0.09861177]
[1674245737691,0.94532669,21869.0,21867.0,0.09861177]
[1674245738026,0.31999,21868.0,21867.0,0.55591477]
[1674245738223,0.31999,21868.0,21867.0,0.457303]
[1674245738488,0.04838,21869.0,21867.0,0.457303]
[1674245739328,0.01630867,21872.0,21867.0,0.457303]
[1674245739545,0.01630867,21872.0,21868.0,0.24861177]
[1674245739823,0.01630867,21872.0,21869.0,1.371792]
[1674245740055,0.01630867,21872.0,21869.0,1.47040377]
[1674245740316,0.01630867,21872.0,21869.0,1.25400445]
[1674245740591,0.01630867,21872.0,21870.0,0.15]
[1674245740851,0.01630867,21872.0,21871.0,0.914452]
[1674245741615,0.01884799,21874.0,21871.0,1.41535492]
[1674245741886,0.01884799,21874.0,21873.0,0.1381]
[1674245742131,0.01285312,21875.0,21873.0,1.60826377]
[1674245742385,0.01285312,21875.0,21874.0,0.53035976]
[1674245742641,0.01917346,21878.0,21874.0,1.09463453]
[1674245742900,4.6e-07,21878.0,21875.0,0.87221346]
[1674245743194,0.01899382,21881.0,21877.0,0.1381]
[1674245743412,0.01899382,21881.0,21880.0,0.1381]
[1674245743668,0.01899382,21881.0,21880.0,1.60782577]
[1674245743919,1.4279,21889.0,21880.0,1.66839867]
[1674245744182,1.4279,21889.0,21881.0,0.15]
[1674245744438,1.4279,21889.0,21882.0,1.052092]
[1674245744965,1.4279,21889.0,21883.0,3.1551]
[1674245745219,1.4279,21889.0,21883.0,10.763275]
[1674245745499,1.4279,21889.0,21883.0,3.618975]
[1674245746016,0.15123265,21892.0,21884.0,0.15]
[1674245746294,0.15123265,21892.0,21886.0,1.370712]
[1674245746547,0.12623265,21892.0,21886.0,1.370712]
[1674245747053,1.24529853,21893.0,21886.0,1.370712]
[1674245747301,0.006,21892.0,21886.0,1.370712]
[1674245747568,0.18502243,21892.0,21886.0,1.370712]
[1674245747824,0.18502243,21892.0,21886.0,1.827625]
[1674245748074,0.18002243,21892.0,21886.0,1.827625]
[1674245748390,0.17002243,21892.0,21886.0,1.827625]
[1674245748600,1.26482262,21893.0,21890.0,0.1381]
[1674245748879,1.26482262,21893.0,21891.0,1.827232]
[1674245749383,1.26482262,21893.0,21892.0,0.3]
[1674245749906,1.26482262,21893.0,21892.0,1.0]
[1674245750669,0.77526762,21893.0,21892.0,2.532]
[1674245750928,0.77526762,21893.0,21892.0,2.5445]
[1674245751178,0.77526762,21893.0,21892.0,4.086]
[1674245752493,0.77526762,21893.0,21892.0,4.542787]
[1674245752762,0.77526762,21893.0,21892.0,4.842787]
[1674245753021,0.77526762,21893.0,21892.0,4.851287]
[1674245753855,0.77526762,21893.0,21892.0,4.30413358]
[1674245754376,0.77526762,21893.0,21892.0,4.93983527]
[1674245754837,0.29156583,21893.0,21892.0,4.93983527]
[1674245754846,0.02227695,21897.0,21893.0,0.15]
[1674245755094,0.02227695,21897.0,21893.0,0.60723828]
[1674245755380,0.02227695,21897.0,21895.0,0.15]
[1674245755617,0.02227695,21897.0,21896.0,1.370112]
[1674245755876,0.02927695,21897.0,21896.0,1.678612]
[1674245756158,0.02305456,21899.0,21896.0,5.15581369]
[1674245756401,1.24515833,21900.0,21897.0,0.92720169]
[1674245756649,1.24515833,21900.0,21898.0,1.515686]
[1674245756912,1.24515833,21900.0,21898.0,1.369986]
[1674245757173,1.24515833,21900.0,21899.0,2.0]
[1674245757446,0.92243995,21900.0,21899.0,2.0]
[1674245757966,0.92243995,21900.0,21899.0,1.2328]
[1674245758964,0.92243995,21900.0,21899.0,1.689441]
[1674245759477,0.49397298,21900.0,21899.0,1.989441]
[1674245759738,0.49397298,21900.0,21899.0,1.774441]
[1674245759739,0.49497298,21900.0,21899.0,1.774441]
[1674245759997,0.67899541,21900.0,21899.0,7.689441]
[1674245760266,0.49397298,21900.0,21899.0,7.689441]
[1674245760525,0.49397298,21900.0,21899.0,2.689441]
[1674245760774,0.49397298,21900.0,21899.0,1.456641]
[1674245761032,0.49397298,21900.0,21899.0,10.859701]
[1674245761328,0.49397298,21900.0,21899.0,1.944701]
[1674245761536,0.49397298,21900.0,21899.0,12.859701]
[1674245761810,0.49397298,21900.0,21899.0,1.944701]
[1674245761811,0.49497298,21900.0,21899.0,1.944701]
[1674245762056,0.49497298,21900.0,21899.0,10.48806]
[1674245762057,0.81809541,21900.0,21899.0,10.48806]
[1674245762320,0.81809541,21900.0,21899.0,1.48806]
[1674245762581,0.95583498,21900.0,21899.0,1.48806]
[1674245762831,0.80394498,21900.0,21899.0,1.48806]
[1674245763112,0.80394498,21900.0,21899.0,1.40306]
[1674245763113,0.49397298,21900.0,21899.0,1.40306]
[1674245763392,0.49497298,21900.0,21899.0,1.945701]
[1674245763955,0.49497298,21900.0,21899.0,2.245701]
[1674245764207,0.49497298,21900.0,21899.0,2.168201]
[1674245764455,0.49397298,21900.0,21899.0,2.309701]
[1674245764714,0.49397298,21900.0,21899.0,7.859701]
[1674245764984,0.49497298,21900.0,21899.0,7.938701]
[1674245765332,0.67999541,21900.0,21899.0,3.48206]
[1674245765574,0.49497298,21900.0,21899.0,4.48206]
[1674245765848,0.49397298,21900.0,21899.0,4.40306]
[1674245766106,0.49597298,21900.0,21899.0,4.47506]
[1674245766370,0.49384773,21900.0,21899.0,1.40306]
[1674245766625,1.26140345,21900.0,21892.0,0.456785]
[1674245766893,1.26140345,21900.0,21891.0,0.456801]
[1674245766894,0.1379,21894.0,21891.0,0.456801]
[1674245767144,0.13371,21897.0,21890.0,0.95478]
[1674245767145,0.1371,21892.0,21890.0,0.95478]
[1674245767415,0.52352043,21891.0,21890.0,8e-05]
[1674245767662,1.918798,21891.0,21890.0,8e-05]
[1674245768176,1.918798,21891.0,21885.0,0.00019]
[1674245768177,0.1381,21890.0,21885.0,0.00019]
[1674245768438,0.34657,21886.0,21874.0,4.46829576]
[1674245768676,0.1377,21880.0,21875.0,0.15]
[1674245768931,0.1381,21878.0,21874.0,0.01113976]
[1674245769252,0.20867,21881.0,21865.0,0.579947]
[1674245769253,0.1377,21876.0,21865.0,0.457344]
[1674245769420,0.48590843,21875.0,21864.0,0.23456579]
[1674245769644,0.50393943,21874.0,21866.0,0.15]
[1674245769945,0.51045143,21873.0,21866.0,0.15]
[1674245770202,0.28108,21877.0,21866.0,0.93451369]
[1674245770203,0.00019,21872.0,21866.0,0.93451369]
[1674245770452,0.00019,21872.0,21867.0,2.26960461]
[1674245770709,0.00011341,21872.0,21871.0,0.1381]
[1674245770992,0.00011341,21872.0,21871.0,1.07252769]
[1674245771218,0.00011341,21872.0,21871.0,1.57215661]
[1674245771483,0.00011341,21872.0,21871.0,5.57215661]
[1674245771792,0.00011341,21872.0,21871.0,5.88065661]
[1674245771793,5.078e-05,21872.0,21871.0,5.88065661]
[1674245771993,5.078e-05,21872.0,21871.0,5.94765661]
[1674245771994,0.00205078,21872.0,21871.0,5.94765661]
[1674245772243,0.00205078,21872.0,21871.0,4.072]
[1674245772244,0.18707321,21872.0,21871.0,4.072]
[1674245772508,0.18707321,21872.0,21871.0,0.072]
[1674245772509,0.18702243,21872.0,21871.0,0.072]
[1674245772773,0.304046,21872.0,21871.0,0.072]
[1674245773037,0.304046,21872.0,21871.0,0.022]
[1674245773271,0.302046,21872.0,21864.0,0.457369]
[1674245773513,0.0769,21872.0,21871.0,0.021]
[1674245774262,0.002,21872.0,21867.0,0.457308]
[1674245774512,0.18502243,21872.0,21866.0,2.15]
[1674245774752,0.18502243,21872.0,21867.0,0.3]
[1674245775000,0.1377,21877.0,21871.0,0.025]
[1674245775001,0.12777,21876.0,21871.0,0.025]
[1674245775242,0.006,21872.0,21871.0,0.025]
[1674245775998,0.006,21872.0,21869.0,0.45]
[1674245775999,0.12777,21876.0,21869.0,0.45]
[1674245776252,0.18502243,21875.0,21869.0,0.29991634]
[1674245776507,0.15,21876.0,21866.0,5.15]
[1674245776508,0.18502243,21874.0,21866.0,5.15]
[1674245776759,0.006,21872.0,21866.0,0.025]
[1674245777014,0.18502243,21871.0,21867.0,1.0]
[1674245777265,0.137,21869.0,21866.0,0.025]
[1674245777521,0.1381,21867.0,21859.0,0.45703922]
[1674245777779,0.51274743,21866.0,21861.0,0.457417]
[1674245778030,0.18502243,21865.0,21861.0,0.457417]
[1674245778286,0.16652019,21865.0,21862.0,0.15]
[1674245778556,0.13305,21871.0,21863.0,0.457393]
[1674245778557,0.13297,21871.0,21863.0,0.457393]
[1674245778784,0.006,21871.0,21864.0,0.03350223]
[1674245779037,0.006,21871.0,21866.0,0.457328]
[1674245779302,1.3996,21873.0,21865.0,0.49962777]
[1674245779549,0.006,21867.0,21864.0,0.3]
[1674245779792,0.18502243,21867.0,21862.0,0.45]
[1674245780053,0.18502243,21866.0,21862.0,0.45]
[1674245780301,0.37696351,21891.0,21862.0,0.45]
[1674245780543,0.007,21867.0,21864.0,0.024]
[1674245780799,0.007,21867.0,21864.0,0.3]
[1674245781041,0.006,21866.0,21865.0,0.457351]
[1674245781296,0.006,21866.0,21865.0,0.757351]
[1674245781800,0.0759,21866.0,21863.0,0.607393]
[1674245782045,0.26092243,21866.0,21864.0,0.3]
[1674245782290,0.0759,21866.0,21864.0,0.385]
[1674245782551,0.18502243,21866.0,21862.0,0.457403]
[1674245782806,0.51553267,21865.0,21863.0,0.085]
[1674245783063,0.63513043,21865.0,21859.0,0.45746]
[1674245783320,0.64959543,21864.0,21858.0,0.21481709]
[1674245783566,0.50242843,21863.0,21856.0,0.46132415]
[1674245783811,0.32202243,21862.0,21856.0,0.00378615]
[1674245784078,0.1377,21860.0,21856.0,0.00378615]
[1674245784327,0.18502243,21861.0,21856.0,0.00378615]
[1674245784328,0.31192243,21864.0,21858.0,0.085]
[1674245784572,0.001,21864.0,21858.0,0.999988]
[1674245784839,0.001,21864.0,21858.0,1.51948446]
[1674245785098,0.001,21864.0,21859.0,0.15]
[1674245785342,0.05715,21870.0,21860.0,1.39209369]
[1674245785612,1.442,21871.0,21861.0,0.3085]
[1674245785613,0.18502243,21869.0,21861.0,0.3085]
[1674245785871,0.18502243,21868.0,21860.0,0.49974077]
[1674245786124,0.001,21864.0,21861.0,0.457415]
[1674245786366,0.33111,21863.0,21860.0,0.457446]
[1674245786612,0.18502243,21863.0,21860.0,0.31281234]
[1674245786864,0.12579,21866.0,21860.0,0.22881234]
[1674245787118,0.26289,21867.0,21860.0,0.31281234]
[1674245787119,0.18502243,21865.0,21860.0,0.31281234]
[1674245787369,0.18502243,21864.0,21858.0,0.457498]
[1674245787615,0.137,21865.0,21858.0,0.457498]
[1674245787616,0.50556343,21863.0,21858.0,0.457498]
[1674245787863,0.309591,21862.0,21856.0,0.00378615]
[1674245788124,0.18502243,21861.0,21858.0,0.457484]
[1674245788376,1.54472243,21864.0,21858.0,0.457484]
[1674245788622,1.3597,21868.0,21861.0,0.07332358]
[1674245788867,1.3597,21868.0,21863.0,0.457391]
[1674245789651,1.54472243,21868.0,21862.0,0.457403]
[1674245789898,1.54472243,21868.0,21861.0,0.07332358]
[1674245789899,0.51206043,21867.0,21861.0,0.07332358]
[1674245790151,0.68088943,21866.0,21861.0,0.07332358]
[1674245790414,0.68088943,21866.0,21859.0,0.457466]
[1674245790415,0.15,21864.0,21859.0,0.457466]
[1674245790658,0.312811,21863.0,21859.0,0.457466]
[1674245790919,1.48684,21868.0,21859.0,0.93466769]
[1674245790920,0.001,21868.0,21859.0,0.93466769]
[1674245791169,0.18502243,21867.0,21860.0,0.19229477]
[1674245791418,0.18502243,21866.0,21862.0,0.457411]
[1674245791662,0.12614,21868.0,21861.0,0.457433]
[1674245791663,0.18502243,21865.0,21861.0,0.457435]
[1674245791914,0.18502243,21865.0,21859.0,0.457466]
[1674245791915,0.295878,21864.0,21859.0,0.457466]
[1674245792170,0.18502243,21863.0,21859.0,0.457466]
[1674245792422,0.313349,21862.0,21859.0,0.22644042]
[1674245792675,0.18502243,21862.0,21858.0,0.457483]
[1674245792925,0.18502243,21862.0,21857.0,0.39496448]
[1674245793198,0.18502243,21861.0,21857.0,0.39496448]
[1674245793724,0.314146,21860.0,21857.0,0.39496448]
[1674245793964,0.12724,21863.0,21857.0,0.39496448]
[1674245794216,0.18502243,21863.0,21857.0,0.39496448]
[1674245794719,0.341069,21862.0,21857.0,0.39496448]
[1674245794981,0.330186,21861.0,21857.0,0.39496448]
[1674245795228,0.319441,21860.0,21857.0,0.39496448]
[1674245795488,0.305984,21859.0,21857.0,0.39496448]
[1674245795734,0.65202243,21863.0,21857.0,0.39496448]
[1674245795995,0.63502243,21863.0,21857.0,0.39496448]
[1674245796255,0.50795743,21862.0,21854.0,5.20413304]
[1674245796507,0.63733443,21861.0,21854.0,0.457579]
[1674245796752,0.49532343,21860.0,21854.0,0.457579]
[1674245797001,0.18502243,21859.0,21854.0,0.457579]
[1674245797259,0.64015943,21858.0,21853.0,0.0039328]
[1674245797506,0.65648243,21857.0,21853.0,0.457596]
[1674245797747,0.333787,21856.0,21853.0,0.457596]
[1674245798002,0.309132,21855.0,21853.0,0.457596]
[1674245798248,0.1381,21858.0,21853.0,0.457596]
[1674245798249,0.32312243,21858.0,21855.0,0.03091319]
[1674245798509,1.244067,21863.0,21856.0,0.91508]
[1674245798510,0.45,21863.0,21856.0,0.91508]
[1674245798750,0.009,21859.0,21856.0,0.91508]
[1674245798997,0.45,21863.0,21856.0,0.91508]
[1674245799238,0.064,21858.0,21857.0,0.3]
[1674245799491,0.45,21863.0,21857.0,1.223538]
[1674245799492,0.3,21863.0,21857.0,1.223538]
[1674245799739,0.3,21863.0,21858.0,0.0085]
[1674245799740,0.01,21859.0,21858.0,0.0085]
[1674245799995,0.3,21863.0,21858.0,1.450214]
[1674245800243,0.3,21863.0,21859.0,0.3]
[1674245800485,0.3,21863.0,21860.0,1.372356]
[1674245801000,0.3,21863.0,21861.0,0.3]
[1674245801254,0.4,21863.0,21862.0,0.914828]
[1674245801469,0.4,21863.0,21862.0,0.457414]
[1674245801990,0.41,21863.0,21862.0,0.757414]
[1674245802264,0.405194,21863.0,21862.0,0.756414]
[1674245802506,0.395194,21863.0,21862.0,0.764914]
[1674245802766,0.406194,21863.0,21862.0,0.771914]
[1674245803023,0.59121643,21863.0,21862.0,0.007]
[1674245803267,0.88953843,21863.0,21862.0,0.036]
[1674245803520,0.704516,21863.0,21862.0,0.036]
[1674245803819,0.705516,21863.0,21859.0,0.457465]
[1674245804046,0.50328543,21862.0,21859.0,0.457465]
[1674245804305,0.395194,21863.0,21860.0,0.036]
[1674245804591,0.395194,21863.0,21860.0,0.493438]
[1674245804819,0.396194,21863.0,21862.0,0.077]
[1674245805066,0.396194,21863.0,21861.0,0.914841]
[1674245805067,0.395194,21863.0,21861.0,0.914841]
[1674245805308,0.411194,21863.0,21861.0,0.457426]
[1674245805560,0.411194,21863.0,21860.0,0.493438]
[1674245805807,0.427194,21863.0,21862.0,0.006]
[1674245806050,0.720058,21863.0,21860.0,0.493438]
[1674245806273,0.395194,21863.0,21861.0,0.457425]
[1674245806548,0.411194,21863.0,21861.0,0.463425]
[1674245807044,0.395194,21863.0,21861.0,0.457425]
[1674245807295,0.395194,21863.0,21861.0,0.036]
[1674245807542,0.306466,21862.0,21861.0,0.036]
[1674245807800,0.306466,21862.0,21859.0,0.457467]
[1674245808061,0.18502243,21862.0,21861.0,0.036]
[1674245808313,0.395194,21863.0,21861.0,0.036]
[1674245808562,0.320719,21862.0,21861.0,0.006]
[1674245808808,0.395194,21863.0,21861.0,0.493426]
[1674245809044,0.001,21862.0,21861.0,0.2508943]
[1674245809299,0.395194,21863.0,21861.0,0.9723293]
[1674245809525,0.395194,21863.0,21861.0,0.7143293]
[1674245809526,0.411194,21863.0,21861.0,0.7143293]
[1674245810055,0.16729488,21872.0,21861.0,0.7143293]
[1674245810056,0.01729488,21872.0,21863.0,0.15865694]
[1674245810305,0.01729488,21872.0,21865.0,1.372011]
[1674245810552,0.01729488,21872.0,21866.0,0.3]
[1674245810792,0.01729488,21872.0,21867.0,1.371879]
[1674245811043,0.01729488,21872.0,21868.0,0.3]
[1674245811294,0.01729488,21872.0,21869.0,1.371793]
[1674245811552,0.01729488,21872.0,21870.0,0.3]
[1674245811800,0.01729488,21872.0,21871.0,1.371678]
[1674245812540,0.01729488,21872.0,21871.0,1.19234987]
[1674245812785,0.01729488,21872.0,21871.0,0.73512387]
[1674245813771,0.08719488,21872.0,21871.0,0.27789787]
[1674245814023,0.08719488,21872.0,21871.0,0.036]
[1674245814024,0.39674788,21872.0,21871.0,0.036]
[1674245814268,0.58177031,21872.0,21871.0,0.036]
[1674245814509,0.58177031,21872.0,21870.0,0.11496021]
[1674245814510,0.39674788,21872.0,21870.0,0.02196021]
[1674245814796,0.615913,21871.0,21870.0,0.02196021]
[1674245815583,0.615913,21871.0,21870.0,0.02896021]
[1674245815825,0.328213,21871.0,21870.0,0.02196021]
[1674245816070,0.328213,21871.0,21870.0,0.02896021]
[1674245816071,0.335213,21871.0,21870.0,0.02896021]
[1674245816835,0.80732412,21871.0,21869.0,0.15]
[1674245817123,1.14186112,21870.0,21859.0,4.457463]
[1674245817364,0.1379,21865.0,21859.0,0.457463]
[1674245817609,0.50528643,21864.0,21860.0,1.457449]
[1674245817854,0.50528643,21864.0,21863.0,0.19465694]
[1674245818117,0.320264,21864.0,21863.0,0.19465694]
[1674245818863,0.470264,21864.0,21863.0,0.27565694]
[1674245819109,0.470264,21864.0,21863.0,0.19465694]
[1674245819373,0.939636,21864.0,21863.0,0.20165694]
[1674245819870,1.397008,21864.0,21863.0,0.20165694]
[1674245820114,1.397008,21864.0,21863.0,0.19465694]
[1674245820354,1.385008,21864.0,21863.0,0.19465694]
[1674245820628,1.397008,21864.0,21863.0,0.19465694]
[1674245820892,0.470264,21864.0,21863.0,0.19465694]
[1674245821899,0.470264,21864.0,21863.0,0.18965694]
[1674245822148,0.482264,21864.0,21863.0,0.19665694]
[1674245822395,0.482264,21864.0,21863.0,0.007]
[1674245822639,1.895364,21864.0,21863.0,0.007]
[1674245822886,0.007,21863.0,21855.0,0.03091319]
[1674245823143,0.007,21863.0,21856.0,0.91484581]
[1674245823144,0.457443,21861.0,21856.0,0.91484581]
[1674245823400,0.1371,21857.0,21856.0,0.91484581]
[1674245823658,0.64197543,21857.0,21855.0,0.03091319]
[1674245823910,0.320326,21856.0,21855.0,0.03091319]
[1674245824412,0.320547,21856.0,21855.0,0.03091319]
[1674245824660,0.299704,21856.0,21855.0,0.03091319]
[1674245826675,0.027,21856.0,21855.0,0.03091319]
[1674245827447,0.0969,21856.0,21855.0,0.03091319]
[1674245827699,0.41563,21856.0,21855.0,0.03091319]
[1674245828442,0.46193,21856.0,21855.0,0.03091319]
[1674245828949,0.39203,21856.0,21855.0,0.03091319]
[1674245829460,0.0463,21856.0,21855.0,0.03091319]
[1674245830183,0.369021,21856.0,21855.0,0.03091319]